[Event "44th BAN-ch OMICON 2018"]
[Site "Dhaka"]
[Date "2018.11.30"]
[Round "7"]
[White "Chatterjee, Debaraj"]
[Black "Mohammad, Javed"]
[Result "1-0"]
[ECO "E97"]
[WhiteElo "2277"]
[BlackElo "2135"]
[Annotator "NA RC"]
[PlyCount "67"]
[EventDate "2018.11.24"]
[EventType "swiss"]
[EventCountry "BAN"]
[SourceTitle "playchess.com"]
[Source "ChessBase"]
[SourceQuality "1"]
[TimeControl "40/5400+30:1800+30"]

1. d4 {[%emt 0:00:30]} Nf6 {[%emt 0:01:11]} 2. c4 {[%emt 0:00:23]} g6 {[%emt 0:00:18]} 3. Nc3 {[%emt 0:00:23]} Bg7 {[%emt 0:00:12]} 4. e4 {[%emt 0:00:12]} d6 {[%emt 0:00:07]} 5. Nf3 {[%emt 0:00:07]} O-O {[%emt 0:00:09]} 6. Be2 {[%emt 0:00:05]} e5 {[%emt 0:00:12]} 7. O-O {[%emt 0:00:13]} Nc6 {[%emt 0:00:14]} 8. d5 {[%emt 0:00:13]} Ne7 {[%emt 0:00:08]} 9. b4 {[%emt 0:00:22]} a5 {[%emt 0:05:39]} 10. bxa5 {[%emt 0:00:25]} Rxa5 {[%emt 0:00:49]} 11. a4 {[%emt 0:00:26]} Nh5 {[%emt 0:03:59] E97: King's Indian: Classical Main Line (6...e5 7 0-0 Nc6): 8 Be3 and 8 d5 Ne7, not 9 Ne1} (11... c5 12. Bd2 Ra6 13. Qc2 Nd7 14. Ra3 f5 15. Ng5 Nf6 16. Rb1 fxe4 17. Ncxe4 Nxe4 18. Nxe4 Nf5 19. Qd1 {½-½ (117) Kazhgaleyev,M (2582)-Yilmaz,M (2613) Almaty 2016}) 12. Nd2 {[%emt 0:05:57]} Nf4 {[%emt 0:01:36]} 13. Nb3 {[%emt 0:00:16]} Ra8 {[%emt 0:01:21]} 14. Be3 $146 {[%emt 0:20:15]} ({Predecessor:} 14. Ba3 f5 15. f3 Nxe2+ 16. Qxe2 f4 17. a5 g5 18. h3 h5 19. c5 {0-1 (28) Magyar,F (2019)-Spacek,O (1907) Slovakia 2011}) 14... f5 {[%emt 0:07:59]} 15. f3 {[%emt 0:06:16]} b6 {[%emt 0:18:21]} 16. a5 {[%emt 0:19:38]} bxa5 {[%emt 0:00:19]} 17. Rxa5 {[%emt 0:00:04]} Rxa5 {[%emt 0:03:42]} 18. Nxa5 {[%emt 0:00:02]} c5 {[%emt 0:00:12]} 19. Nc6 {[%emt 0:00:38]} Qe8 {[%emt 0:12:37]} 20. Na7 {[%emt 0:03:09]} Bd7 {[%emt 0:11:52]} 21. Nab5 {[%emt 0:00:22]} Nc8 {[%emt 0:00:43]} 22. Re1 {[%emt 0:11:11]} Qd8 {[%emt 0:10:09]} (22... Nxe2+ $11 23. Qxe2 Qe7) 23. Bf1 {[%emt 0:03:08]} fxe4 {[%emt 0:01:54]} 24. Nxe4 {[%emt 0:01:55]} Bxb5 {[%emt 0:01:52]} 25. cxb5 {[%emt 0:00:10]} Nb6 {[%emt 0:00:26]} 26. Qb3 {[%emt 0:08:37]} Rf7 {[%emt 0:01:59]} (26... Qc7 $14) 27. Rd1 {[%emt 0:02:06]} Bf8 {[%emt 0:02:41]} 28. g3 {[%emt 0:04:05]} Nh5 {[%emt 0:05:35]} 29. Ng5 {[%emt 0:00:16]} ({White should try} 29. Bh3) 29... Ra7 $2 {[%emt 0:02:48] [#]} (29... Rb7 $16 {might work better.}) 30. Bxc5 $1 {[%emt 0:04:16]} Qxg5 $18 {[%emt 0:00:41]} ({But not} 30... dxc5 31. d6+ c4 32. Bxc4+ Kh8 {[#]} 33. d7 $1 $18 {[%mdl 512]}) (30... Ng7 {was worth a try.} 31. Bf2 Be7) 31. Bxb6 {[%emt 0:00:10]} Rf7 {[%emt 0:02:20]} 32. Bf2 {[%emt 0:02:10]} Qf6 {[%emt 0:00:48]} 33. b6 {[%emt 0:00:50]} Rb7 {[%emt 0:01:50]} 34. Ba6 {[%emt 0:00:36]} 1-0

[Event "44th BAN-ch OMICON 2018"]
[Site "Dhaka"]
[Date "2018.11.30"]
[Round "7"]
[White "Rahman, Taibur"]
[Black "Mohammad Fahad, Rahman"]
[Result "1-0"]
[ECO "E41"]
[WhiteElo "2239"]
[BlackElo "2381"]
[Annotator "RC"]
[PlyCount "75"]
[EventDate "2018.11.24"]
[EventType "swiss"]
[EventCountry "BAN"]
[SourceTitle "playchess.com"]
[Source "ChessBase"]
[SourceQuality "1"]
[TimeControl "40/5400+30:1800+30"]

1. d4 {[%emt 0:00:00]} Nf6 {[%emt 0:00:00]} 2. c4 {[%emt 0:00:00]} e6 {[%emt 0:00:01]} 3. Nc3 {[%emt 0:00:16]} Bb4 {[%emt 0:00:28]} 4. e3 {[%emt 0:00:05]} O-O {[%emt 0:00:51]} 5. Bd3 {[%emt 0:00:15]} c5 {[%emt 0:00:31]} 6. Nf3 {[%emt 0:00:06]} Nc6 {[%emt 0:00:20]} 7. O-O {[%emt 0:01:46]} Bxc3 {[%emt 0:01:22]} 8. bxc3 {[%emt 0:00:05]} d6 {[%emt 0:00:11]} 9. e4 {[%emt 0:05:05]} e5 {[%emt 0:00:55]} 10. d5 {[%emt 0:00:04]} Ne7 {[%emt 0:00:10]} 11. Nh4 {[%emt 0:00:08]} Ng6 {[%emt 0:06:19]} 12. Nf5 {[%emt 0:02:55]} Ne7 {[%emt 0:11:45]} 13. Ne3 {[%emt 0:25:25]} Ne8 {[%emt 0:06:20]} 14. Rb1 {[%emt 0:07:04]} b6 {[%emt 0:01:03]} 15. a4 {[%emt 0:01:34]} f5 {[%emt 0:09:25]} 16. exf5 {[%emt 0:01:21]} Nxf5 {[%emt 0:00:07]} 17. Qc2 {[%emt 0:03:32]} g6 {[%emt 0:00:21]} 18. f4 {[%emt 0:02:01]} Nxe3 {[%emt 0:08:50]} 19. Bxe3 {[%emt 0:00:18]} Ng7 {[%emt 0:02:10]} 20. fxe5 {[%emt 0:00:39]} dxe5 {[%emt 0:00:22]} 21. Rxf8+ {[%emt 0:02:17]} Qxf8 {[%emt 0:00:02]} 22. a5 {[%emt 0:04:49]} Qd6 {[%emt 0:00:57]} 23. Qa2 {[%emt 0:14:37]} Bf5 {[%emt 0:18:55]} 24. Bxf5 {[%emt 0:07:38]} Nxf5 {[%emt 0:00:08]} 25. Bf2 {[%emt 0:00:28]} Rb8 {[%emt 0:00:24]} 26. axb6 {[%emt 0:00:24]} axb6 {[%emt 0:05:26]} 27. Qa7 {[%emt 0:03:06]} Nh6 {[%emt 0:06:00]} 28. Rb5 {[%emt 0:05:36]} Qd8 {[%emt 0:00:09]} 29. h3 {[%emt 0:00:44]} Ra8 {[%emt 0:04:47]} 30. Qxb6 {[%emt 0:00:27]} Ra1+ {[%emt 0:01:19]} 31. Kh2 {[%emt 0:00:05]} Qxb6 {[%emt 0:00:05]} 32. Rxb6 {[%emt 0:00:05]} Ra4 {[%emt 0:00:04]} 33. d6 {[%emt 0:06:49]} Kf7 {[%emt 0:00:12]} 34. Rb7+ {[%emt 0:01:10]} Ke6 {[%emt 0:00:19]} 35. Bxc5 {[%emt 0:00:06]} Nf5 {[%emt 0:00:37]} 36. d7 {[%emt 0:00:23]} Ra8 {[%emt 0:00:06]} 37. Bb6 {[%emt 0:01:21]} Nd6 {[%emt 0:00:08]} 38. Ra7 {[%emt 0:00:26] Kd5 [%clk 0:00:00]} 1-0

[Event "44th BAN-ch OMICON 2018"]
[Site "Dhaka"]
[Date "2018.11.30"]
[Round "7"]
[White "Rahman, Syed Mahfuzur"]
[Black "S M Sharon"]
[Result "1-0"]
[ECO "B06"]
[WhiteElo "2224"]
[BlackElo "2123"]
[Annotator "RC"]
[PlyCount "87"]
[EventDate "2018.11.24"]
[EventType "swiss"]
[EventCountry "BAN"]
[SourceTitle "playchess.com"]
[Source "ChessBase"]
[SourceQuality "1"]
[TimeControl "40/5400+30:1800+30"]

1. d4 {[%emt 0:00:00]} g6 {[%emt 0:01:29]} 2. e4 {[%emt 0:00:00]} Bg7 {[%emt 0:00:27]} 3. Nf3 {[%emt 0:00:26]} d6 {[%emt 0:01:30]} 4. Nc3 {[%emt 0:00:10]} a6 {[%emt 0:00:22]} 5. a4 {[%emt 0:04:10]} Nf6 {[%emt 0:02:33]} 6. Bd3 {[%emt 0:03:02]} O-O {[%emt 0:00:25]} 7. O-O {[%emt 0:01:30]} Nc6 {[%emt 0:01:32]} 8. d5 {[%emt 0:01:03]} Nb4 {[%emt 0:12:21]} 9. Be2 {[%emt 0:10:27]} e6 {[%emt 0:02:03]} 10. a5 {[%emt 0:07:49]} exd5 {[%emt 0:01:01]} 11. exd5 {[%emt 0:01:40]} Re8 {[%emt 0:01:21]} 12. Be3 {[%emt 0:01:21]} c5 {[%emt 0:12:44]} 13. dxc6 {[%emt 0:03:25]} bxc6 {[%emt 0:01:03]} 14. Bb6 {[%emt 0:00:28]} Qd7 {[%emt 0:01:56]} 15. Qd2 {[%emt 0:06:06]} Nbd5 {[%emt 0:07:44]} 16. Nxd5 {[%emt 0:07:08]} Nxd5 {[%emt 0:00:06]} 17. Bd4 {[%emt 0:00:14]} Nf6 {[%emt 0:01:09]} 18. Rad1 {[%emt 0:07:06]} c5 {[%emt 0:09:07]} 19. Bxf6 {[%emt 0:02:29]} Bxf6 {[%emt 0:01:27]} 20. Bc4 {[%emt 0:00:02]} Rd8 {[%emt 0:10:43]} 21. Ng5 {[%emt 0:08:29]} Qg4 {[%emt 0:09:36]} 22. Bxf7+ {[%emt 0:05:58]} Kg7 {[%emt 0:00:55]} 23. Bd5 {[%emt 0:05:04]} Bxg5 {[%emt 0:00:51]} 24. f4 {[%emt 0:00:09]} Bb7 {[%emt 0:12:24]} 25. Bxb7 {[%emt 0:09:49]} Ra7 {[%emt 0:00:09]} 26. fxg5 {[%emt 0:04:32]} Rxb7 {[%emt 0:00:05]} 27. Qc3+ {[%emt 0:00:08]} Kg8 {[%emt 0:00:13]} 28. Qf6 {[%emt 0:00:09]} Qd7 {[%emt 0:00:58]} 29. Rde1 {[%emt 0:03:18]} Qc8 {[%emt 0:01:34]} 30. Re7 {[%emt 0:02:43]} Rxe7 {[%emt 0:00:50]} 31. Qxe7 {[%emt 0:00:02]} Rf8 {[%emt 0:00:15]} 32. Rf6 {[%emt 0:02:35]} Rxf6 {[%emt 0:05:17]} 33. gxf6 {[%emt 0:00:17]} Qf8 {[%emt 0:00:14]} 34. Qe6+ {[%emt 0:00:29]} Kh8 {[%emt 0:01:37]} 35. c4 {[%emt 0:00:11]} h6 {[%emt 0:00:21]} 36. h4 {[%emt 0:03:46]} h5 {[%emt 0:00:13]} 37. Kf2 {[%emt 0:01:16]} Qb8 {[%emt 0:00:56]} 38. Kf3 {[%emt 0:00:35]} Qa8+ {[%emt 0:00:52]} 39. Kf4 {[%emt 0:00:17]} Qf8 {[%emt 0:00:15]} 40. Kg5 {[%emt 0:00:00]} Qa8 {[%emt 0:00:00]} 41. g3 {[%emt 0:04:46]} d5 {[%emt 0:05:53]} 42. Qf7 {[%emt 0:02:26]} Qg8 {[%emt 0:04:16]} 43. Qxg8+ {[%emt 0:00:11]} Kxg8 {[%emt 0:00:06]} 44. cxd5 {[%emt 0:26:14]} 1-0

[Event "44th BAN-ch OMICON 2018"]
[Site "Dhaka"]
[Date "2018.11.30"]
[Round "7"]
[White "Anata, Choudhury"]
[Black "Jamal Uddin"]
[Result "1/2-1/2"]
[ECO "B96"]
[WhiteElo "2141"]
[BlackElo "1950"]
[Annotator "RC"]
[PlyCount "127"]
[EventDate "2018.11.24"]
[EventType "swiss"]
[EventCountry "BAN"]
[SourceTitle "playchess.com"]
[Source "ChessBase"]
[SourceQuality "1"]
[TimeControl "40/5400+30:1800+30"]

1. e4 {[%emt 0:00:00]} c5 {[%emt 0:04:04]} 2. Nf3 {[%emt 0:00:00]} d6 {[%emt 0:00:47]} 3. d4 {[%emt 0:00:00]} cxd4 {[%emt 0:00:04]} 4. Nxd4 {[%emt 0:00:05]} Nf6 {[%emt 0:00:24]} 5. Nc3 {[%emt 0:00:10]} a6 {[%emt 0:00:32]} 6. Bg5 {[%emt 0:00:21]} e6 {[%emt 0:00:25]} 7. f4 {[%emt 0:00:16]} Nc6 {[%emt 0:01:21]} 8. e5 {[%emt 0:09:48]} dxe5 {[%emt 0:09:00]} 9. Nxc6 {[%emt 0:00:08]} Qxd1+ {[%emt 0:00:37]} 10. Rxd1 {[%emt 0:00:16]} bxc6 {[%emt 0:00:08]} 11. fxe5 {[%emt 0:00:08]} Nd5 {[%emt 0:00:16]} 12. Ne4 {[%emt 0:01:06]} h6 {[%emt 0:00:42]} 13. Bh4 {[%emt 0:00:34]} g5 {[%emt 0:00:21]} 14. Bf2 {[%emt 0:00:48]} Be7 {[%emt 0:01:24]} 15. g3 {[%emt 0:03:37]} O-O {[%emt 0:04:36]} 16. c4 {[%emt 0:00:57]} Bb4+ {[%emt 0:05:21]} 17. Ke2 {[%emt 0:00:46]} f5 {[%emt 0:00:31]} 18. exf6 {[%emt 0:16:45]} Nxf6 {[%emt 0:00:42]} 19. Nxf6+ {[%emt 0:00:22]} Rxf6 {[%emt 0:00:03]} 20. Rd8+ {[%emt 0:00:16]} Kf7 {[%emt 0:00:49]} 21. Bh3 {[%emt 0:16:59]} Be7 {[%emt 0:01:18]} 22. Rd3 {[%emt 0:00:33]} h5 {[%emt 0:03:54]} 23. Be3 {[%emt 0:09:25]} g4 {[%emt 0:01:13]} 24. Bg2 {[%emt 0:00:07]} Rb8 {[%emt 0:07:19]} 25. b3 {[%emt 0:05:32]} c5 {[%emt 0:00:38]} 26. Bf4 {[%emt 0:05:19]} Bb7 {[%emt 0:06:41]} 27. Bxb8 {[%emt 0:12:35]} Bxg2 {[%emt 0:00:17]} 28. Re1 {[%emt 0:00:15]} Rf5 {[%emt 0:01:45]} 29. Bf4 {[%emt 0:01:02]} e5 {[%emt 0:01:06]} 30. Be3 {[%emt 0:00:19]} Be4 {[%emt 0:00:59]} 31. Rd7 {[%emt 0:01:24]} Ke8 {[%emt 0:06:07]} 32. Ra7 {[%emt 0:05:09]} h4 {[%emt 0:00:39]} 33. Rxe7+ {[%emt 0:01:43]} Kxe7 {[%emt 0:00:14]} 34. Bxc5+ {[%emt 0:00:10]} Ke6 {[%emt 0:00:53]} 35. gxh4 {[%emt 0:02:54]} Rf3 {[%emt 0:00:50]} 36. Rg1 {[%emt 0:00:25]} Rh3 {[%emt 0:00:12]} 37. Bf2 {[%emt 0:00:40]} Bf3+ {[%emt 0:00:24]} 38. Ke3 {[%emt 0:00:52]} Rxh2 {[%emt 0:01:17]} 39. b4 {[%emt 0:00:33]} Rh3 {[%emt 0:01:35]} 40. Bg3 {[%emt 0:00:00]} Bc6 {[%emt 0:00:00]} 41. Kf2 {[%emt 0:01:56]} Kf5 {[%emt 0:02:00]} 42. Re1 {[%emt 0:00:30]} e4 {[%emt 0:07:39]} 43. Rg1 {[%emt 0:00:30]} Ba4 {[%emt 0:04:01]} 44. Ke3 {[%emt 0:00:43]} Bd1 {[%emt 0:02:41]} 45. a3 {[%emt 0:06:21]} Bb3 {[%emt 0:03:26]} 46. Kd4 {[%emt 0:01:54]} e3 {[%emt 0:00:36]} 47. Kxe3 {[%emt 0:07:32]} Bxc4 {[%emt 0:00:30]} 48. Kf2 {[%emt 0:00:31]} Ke4 {[%emt 0:03:45]} 49. Rc1 {[%emt 0:16:49]} Bb5 {[%emt 0:05:02]} 50. Kg2 {[%emt 0:04:44]} Kd4 {[%emt 0:01:24]} 51. Rc7 {[%emt 0:00:41]} Bc4 {[%emt 0:04:22]} 52. Rg7 {[%emt 0:00:38]} Be2 {[%emt 0:01:10]} 53. Kf2 {[%emt 0:00:30]} Kc4 {[%emt 0:00:43]} 54. h5 {[%emt 0:00:33]} Bf3 {[%emt 0:00:40]} 55. Rg5 {[%emt 0:00:30]} Kb3 {[%emt 0:02:15]} 56. Ra5 {[%emt 0:00:30]} Bb7 {[%emt 0:00:30]} 57. b5 {[%emt 0:00:39]} Rxh5 {[%emt 0:00:30]} 58. bxa6 {[%emt 0:00:31]} Rxa5 {[%emt 0:00:30]} 59. axb7 {[%emt 0:00:30]} Rf5+ {[%emt 0:00:48]} 60. Ke3 {[%emt 0:00:35]} Rb5 {[%emt 0:00:30]} 61. b8=Q {[%emt 0:00:30]} Rxb8 {[%emt 0:00:30]} 62. Bxb8 {[%emt 0:00:30]} Kxa3 {[%emt 0:00:30]} 63. Kf4 {[%emt 0:00:30]} Ka4 {[%emt 0:38:00]} 64. Ke4 {[%emt 0:01:04]} 1/2-1/2

[Event "44th BAN-ch OMICON 2018"]
[Site "Dhaka"]
[Date "2018.11.30"]
[Round "7"]
[White "Hossain, Showkat Pollab"]
[Black "Abu Sufian, Shakil"]
[Result "0-1"]
[ECO "B13"]
[WhiteElo "2119"]
[BlackElo "2230"]
[Annotator "RC"]
[PlyCount "149"]
[EventDate "2018.11.24"]
[EventType "swiss"]
[EventCountry "BAN"]
[SourceTitle "playchess.com"]
[Source "ChessBase"]
[SourceQuality "1"]
[TimeControl "40/5400+30:1800+30"]

1. e4 {[%emt 0:00:00]} c6 {[%emt 0:00:00]} 2. d4 {[%emt 0:00:00]} d5 {[%emt 0:00:00]} 3. exd5 {[%emt 0:00:00]} cxd5 {[%emt 0:00:00]} 4. Bd3 {[%emt 0:00:00]} Nc6 {[%emt 0:00:09]} 5. c3 {[%emt 0:00:02]} Qc7 {[%emt 0:00:16]} 6. h3 {[%emt 0:06:04]} e6 {[%emt 0:07:50]} 7. Nd2 {[%emt 0:03:00]} Nge7 {[%emt 0:03:43]} 8. Ndf3 {[%emt 0:00:57]} Ng6 {[%emt 0:00:31]} 9. Ne2 {[%emt 0:00:49]} Bd6 {[%emt 0:00:14]} 10. Be3 {[%emt 0:02:09]} Bd7 {[%emt 0:02:39]} 11. Qd2 {[%emt 0:03:00]} O-O-O {[%emt 0:04:14]} 12. h4 {[%emt 0:06:08]} f6 {[%emt 0:08:10]} 13. Qc2 {[%emt 0:04:03]} Nge7 {[%emt 0:02:38]} 14. Qd2 {[%emt 0:11:39]} e5 {[%emt 0:04:06]} 15. dxe5 {[%emt 0:04:04]} fxe5 {[%emt 0:01:15]} 16. Bc2 {[%emt 0:03:14]} h6 {[%emt 0:00:48]} 17. a3 {[%emt 0:04:15]} Kb8 {[%emt 0:06:30]} 18. Bb3 {[%emt 0:12:47]} Be6 {[%emt 0:00:58]} 19. Qd1 {[%emt 0:04:11]} Na5 {[%emt 0:01:37]} 20. Ba2 {[%emt 0:00:21]} Nc4 {[%emt 0:00:26]} 21. Bc1 {[%emt 0:01:07]} Rhf8 {[%emt 0:04:10]} 22. b3 {[%emt 0:05:38]} Na5 {[%emt 0:16:31]} 23. Bb2 {[%emt 0:03:09]} Bg4 {[%emt 0:01:34]} 24. Nh2 {[%emt 0:04:08]} Bh5 {[%emt 0:01:40]} 25. Qd2 {[%emt 0:03:11]} Qb6 {[%emt 0:09:17]} 26. Nc1 {[%emt 0:03:08]} Rf7 {[%emt 0:07:38]} 27. Qe3 {[%emt 0:04:38]} Qxe3+ {[%emt 0:02:53]} 28. fxe3 {[%emt 0:00:02]} Rdf8 {[%emt 0:01:13]} 29. g4 {[%emt 0:00:58]} Bg6 {[%emt 0:00:42]} 30. Rf1 {[%emt 0:01:24]} e4 {[%emt 0:02:05]} 31. Rxf7 {[%emt 0:00:22]} Bg3+ {[%emt 0:00:37]} 32. Kf1 {[%emt 0:04:28]} Rxf7+ {[%emt 0:00:15]} 33. Kg2 {[%emt 0:00:14]} Bxh2 {[%emt 0:00:16]} 34. c4 {[%emt 0:00:38]} Bd6 {[%emt 0:01:46]} 35. Ne2 {[%emt 0:00:55]} Nac6 {[%emt 0:02:10]} 36. Rd1 {[%emt 0:00:53]} Ne5 {[%emt 0:01:14]} 37. Bxe5 {[%emt 0:00:49]} Bxe5 {[%emt 0:00:01]} 38. cxd5 {[%emt 0:00:21]} Nc8 {[%emt 0:01:27]} 39. h5 {[%emt 0:01:16]} Bh7 {[%emt 0:00:17]} 40. Nf4 {[%emt 0:00:00]} Bxf4 {[%emt 0:00:00]} 41. Rf1 {[%emt 0:07:43]} Bg8 {[%emt 0:08:23]} 42. exf4 {[%emt 0:01:36]} Rd7 {[%emt 0:03:42]} 43. Kf2 {[%emt 0:02:30]} Rxd5 {[%emt 0:05:45]} 44. Bb1 {[%emt 0:01:26]} Nd6 {[%emt 0:00:20]} 45. Ke3 {[%emt 0:00:42]} Ra5 {[%emt 0:00:35]} 46. Rd1 {[%emt 0:02:43]} Kc7 {[%emt 0:00:31]} 47. Rc1+ {[%emt 0:07:08]} Kd7 {[%emt 0:00:22]} 48. Rc3 {[%emt 0:00:34]} Rxa3 {[%emt 0:00:54]} 49. Bc2 {[%emt 0:01:26]} Nb5 {[%emt 0:04:37]} 50. Rc5 {[%emt 0:01:26]} Bxb3 {[%emt 0:00:29]} 51. Bxb3 {[%emt 0:03:27]} Rxb3+ {[%emt 0:00:13]} 52. Kxe4 {[%emt 0:00:08]} Nd6+ {[%emt 0:00:17]} 53. Kd4 {[%emt 0:01:01]} Rb4+ {[%emt 0:03:13]} 54. Ke3 {[%emt 0:01:07]} Rb5 {[%emt 0:00:25]} 55. Rc1 {[%emt 0:01:07]} a5 {[%emt 0:00:08]} 56. Rg1 {[%emt 0:00:32]} a4 {[%emt 0:00:40]} 57. g5 {[%emt 0:00:52]} hxg5 {[%emt 0:00:51]} 58. fxg5 {[%emt 0:00:09]} a3 {[%emt 0:00:12]} 59. h6 {[%emt 0:00:40]} gxh6 {[%emt 0:00:15]} 60. gxh6 {[%emt 0:01:24]} Nf5+ {[%emt 0:00:36]} 61. Kd3 {[%emt 0:00:24]} Nxh6 {[%emt 0:00:06]} 62. Kc4 {[%emt 0:00:39]} Ra5 {[%emt 0:00:17]} 63. Kb4 {[%emt 0:00:56]} Ra6 {[%emt 0:00:06]} 64. Kb3 {[%emt 0:01:13]} a2 {[%emt 0:00:14]} 65. Ra1 {[%emt 0:00:07]} Nf5 {[%emt 0:00:14]} 66. Kb2 {[%emt 0:00:07]} Nd6 {[%emt 0:00:21]} 67. Kb3 {[%emt 0:00:31]} Kc6 {[%emt 0:00:16]} 68. Kb4 {[%emt 0:00:34]} Kb6 {[%emt 0:00:14]} 69. Kb3 {[%emt 0:00:34]} Kb5 {[%emt 0:00:16]} 70. Kc3 {[%emt 0:00:17]} Ra3+ {[%emt 0:00:32]} 71. Kc2 {[%emt 0:00:45]} Kb4 {[%emt 0:00:19]} 72. Kb2 {[%emt 0:01:48]} Nc4+ {[%emt 0:01:18]} 73. Kc2 {[%emt 0:00:03]} Rc3+ {[%emt 0:00:07]} 74. Kd1 {[%emt 0:00:38]} Kb3 {[%emt 0:00:06]} 75. Ke1 {[%emt 0:07:11]} 0-1

[Event "44th BAN-ch OMICON 2018"]
[Site "Dhaka"]
[Date "2018.11.30"]
[Round "7"]
[White "Saiful Islam, Chowdhury"]
[Black "Mehdi Hasan Parag"]
[Result "0-1"]
[ECO "B19"]
[WhiteElo "2110"]
[BlackElo "2218"]
[Annotator "RC"]
[PlyCount "124"]
[EventDate "2018.11.24"]
[EventType "swiss"]
[EventCountry "BAN"]
[SourceTitle "playchess.com"]
[Source "ChessBase"]
[SourceQuality "1"]
[TimeControl "40/5400+30:1800+30"]

1. e4 {[%emt 0:02:17]} c6 {[%emt 0:00:00]} 2. d4 {[%emt 0:01:05]} d5 {[%emt 0:00:00]} 3. Nd2 {[%emt 0:00:31]} dxe4 {[%emt 0:00:00]} 4. Nxe4 {[%emt 0:00:08]} Bf5 {[%emt 0:00:00]} 5. Ng3 {[%emt 0:00:22]} Bg6 {[%emt 0:00:00]} 6. Nf3 {[%emt 0:00:18]} e6 {[%emt 0:00:00]} 7. h4 {[%emt 0:00:17]} h6 {[%emt 0:00:02]} 8. h5 {[%emt 0:01:59]} Bh7 {[%emt 0:00:02]} 9. Bd3 {[%emt 0:00:18]} Bxd3 {[%emt 0:00:03]} 10. Qxd3 {[%emt 0:00:07]} Nf6 {[%emt 0:00:07]} 11. Bd2 {[%emt 0:01:27]} c5 {[%emt 0:00:21]} 12. O-O-O {[%emt 0:01:54]} Nc6 {[%emt 0:00:04]} 13. Bc3 {[%emt 0:01:00]} Qd5 {[%emt 0:05:12]} 14. Qb5 {[%emt 0:04:25]} c4 {[%emt 0:21:35]} 15. a4 {[%emt 0:07:15]} Qxb5 {[%emt 0:08:38]} 16. axb5 {[%emt 0:00:27]} Nb4 {[%emt 0:00:11]} 17. Bxb4 {[%emt 0:02:49]} Bxb4 {[%emt 0:00:02]} 18. c3 {[%emt 0:01:09]} Be7 {[%emt 0:00:36]} 19. Nd2 {[%emt 0:00:53]} Rc8 {[%emt 0:00:17]} 20. Kc2 {[%emt 0:00:46]} Ng4 {[%emt 0:03:06]} 21. Rhf1 {[%emt 0:00:26]} Bd6 {[%emt 0:05:23]} 22. Nge4 {[%emt 0:01:39]} Bb8 {[%emt 0:00:48]} 23. Rde1 {[%emt 0:00:24]} O-O {[%emt 0:03:17]} 24. f3 {[%emt 0:01:45]} Nf6 {[%emt 0:00:06]} 25. Nxf6+ {[%emt 0:00:59]} gxf6 {[%emt 0:02:43]} 26. g4 {[%emt 0:02:17]} Rfd8 {[%emt 0:01:35]} 27. Ne4 {[%emt 0:14:34]} Kg7 {[%emt 0:00:33]} 28. f4 {[%emt 0:00:44]} Rd5 {[%emt 0:01:23]} 29. g5 {[%emt 0:00:41]} fxg5 {[%emt 0:02:03]} 30. fxg5 {[%emt 0:00:26]} Rf5 {[%emt 0:04:53]} 31. gxh6+ {[%emt 0:03:34]} Kxh6 {[%emt 0:00:43]} 32. Rxf5 {[%emt 0:01:37]} exf5 {[%emt 0:00:01]} 33. Nf6 {[%emt 0:00:17]} Kg5 {[%emt 0:06:55]} 34. Re8 {[%emt 0:02:59]} Rxe8 {[%emt 0:00:01]} 35. Nxe8 {[%emt 0:00:11]} Kxh5 {[%emt 0:00:42]} 36. d5 {[%emt 0:00:19]} Bg3 {[%emt 0:00:16]} 37. d6 {[%emt 0:01:52]} Bh4 {[%emt 0:00:46]} 38. d7 {[%emt 0:00:57]} Kg4 {[%emt 0:00:34]} 39. Nd6 {[%emt 0:00:49]} f4 {[%emt 0:00:44]} 40. Kd2 {[%emt 0:00:00]} Kh3 {[%emt 0:00:00]} 41. Nf5 {[%emt 0:09:32]} Bd8 {[%emt 0:21:22]} 42. Ke2 {[%emt 0:01:44]} Kg2 {[%emt 0:00:48]} 43. Nd4 {[%emt 0:00:16]} Bb6 {[%emt 0:03:14]} 44. Nf3 {[%emt 0:00:15]} Bd8 {[%emt 0:02:20]} 45. Ne1+ {[%emt 0:00:39]} Kg3 {[%emt 0:00:17]} 46. Nf3 {[%emt 0:10:10]} Bb6 {[%emt 0:04:36]} 47. Ne5 {[%emt 0:01:44]} Kg2 {[%emt 0:00:27]} 48. Nxc4 {[%emt 0:04:34]} f3+ {[%emt 0:00:13]} 49. Kd3 {[%emt 0:00:15]} f2 {[%emt 0:02:48]} 50. Nd2 {[%emt 0:02:57]} f5 {[%emt 0:04:35]} 51. c4 {[%emt 0:07:32]} f1=Q+ {[%emt 0:00:59]} 52. Nxf1 {[%emt 0:00:10]} Kxf1 {[%emt 0:00:01]} 53. c5 {[%emt 0:00:15]} Bc7 {[%emt 0:01:08]} 54. Ke3 {[%emt 0:05:04]} Ke1 {[%emt 0:05:17]} 55. c6 {[%emt 0:05:10]} bxc6 {[%emt 0:00:13]} 56. bxc6 {[%emt 0:00:06]} a5 {[%emt 0:00:28]} 57. b3 {[%emt 0:04:00]} f4+ {[%emt 0:03:13]} 58. Ke4 {[%emt 0:00:10]} Kd2 {[%emt 0:01:41]} 59. d8=Q+ {[%emt 0:00:40]} Bxd8 {[%emt 0:00:02]} 60. Kxf4 {[%emt 0:00:18]} Kc3 {[%emt 0:00:05]} 61. Ke5 {[%emt 0:00:14]} Kxb3 {[%emt 0:00:31]} 62. Kd6 {[%emt 0:00:20]} a4 {[%emt 0:00:08]} 0-1

[Event "44th BAN-ch OMICON 2018"]
[Site "Dhaka"]
[Date "2018.11.30"]
[Round "7"]
[White "Ghosh, Chanchal Kumer"]
[Black "Md., Sharif Hossain"]
[Result "0-1"]
[ECO "B33"]
[WhiteElo "2069"]
[BlackElo "2198"]
[Annotator "RC"]
[PlyCount "77"]
[EventDate "2018.11.24"]
[EventType "swiss"]
[EventCountry "BAN"]
[SourceTitle "playchess.com"]
[Source "ChessBase"]
[SourceQuality "1"]
[TimeControl "40/5400+30:1800+30"]

1. e4 {[%emt 1:30:30]} c5 {[%emt 1:30:30]} 2. Nf3 {[%emt 0:00:30]} Nc6 {[%emt 0:00:30]} 3. d4 {[%emt 0:00:30]} cxd4 {[%emt 0:00:30]} 4. Nxd4 {[%emt 0:00:30]} Nf6 {[%emt 0:00:30]} 5. Nc3 {[%emt 0:00:30]} e5 {[%emt 0:00:30]} 6. Ndb5 {[%emt 0:00:30]} d6 {[%emt 0:00:30]} 7. Bg5 {[%emt 0:00:30]} a6 {[%emt 0:00:30]} 8. Na3 {[%emt 0:00:30]} b5 {[%emt 0:00:30]} 9. Nd5 {[%emt 0:00:30]} Be7 {[%emt 0:00:30]} 10. Bxf6 {[%emt 0:00:30]} Bxf6 {[%emt 0:00:30]} 11. c3 {[%emt 0:00:30]} Bg5 {[%emt 0:00:30]} 12. Nc2 {[%emt 0:00:30]} O-O {[%emt 0:00:30]} 13. Be2 {[%emt 0:00:30]} Kh8 {[%emt 0:00:30]} 14. O-O {[%emt 0:00:30]} f5 {[%emt 0:00:30]} 15. exf5 {[%emt 0:00:30]} Bxf5 {[%emt 0:00:30]} 16. a4 {[%emt 0:00:30]} bxa4 {[%emt 0:00:30]} 17. Rxa4 {[%emt 0:00:30]} a5 {[%emt 0:00:30]} 18. Bg4 {[%emt 0:00:30]} Bg6 {[%emt 0:00:30]} 19. Bh5 {[%emt 0:00:30]} Bf5 {[%emt 0:00:30]} 20. Nce3 {[%emt 0:00:30]} g6 {[%emt 0:00:30]} 21. Bf3 {[%emt 0:00:30]} Rb8 {[%emt 0:00:30]} 22. Nc4 {[%emt 0:00:30]} Rb5 {[%emt 0:00:30]} 23. Nde3 {[%emt 0:00:30]} e4 {[%emt 0:00:30]} 24. Nxd6 {[%emt 0:00:30]} exf3 {[%emt 0:00:30]} 25. Nxb5 {[%emt 0:00:30]} Bd3 {[%emt 0:00:30]} 26. Nd4 {[%emt 0:00:30]} Bxf1 {[%emt 0:00:30]} 27. Qxf1 {[%emt 0:00:30]} Bxe3 {[%emt 0:00:30]} 28. fxe3 {[%emt 0:00:30]} f2+ {[%emt 0:00:30]} 29. Kh1 {[%emt 0:00:30]} Ne5 {[%emt 0:00:30]} 30. Ra1 {[%emt 0:00:30]} Qb8 {[%emt 0:00:30]} 31. h3 {[%emt 0:00:30]} Qxb2 {[%emt 0:00:30]} 32. Rd1 {[%emt 0:00:30]} Rf6 {[%emt 0:00:30]} 33. c4 {[%emt 0:00:30]} a4 {[%emt 0:00:30]} 34. c5 {[%emt 0:00:30]} a3 {[%emt 0:00:30]} 35. c6 {[%emt 0:00:30]} Nxc6 {[%emt 0:00:30]} 36. Qa6 {[%emt 0:00:30]} a2 {[%emt 0:00:30]} 37. Qa8+ {[%emt 0:00:30]} Kg7 {[%emt 0:00:30]} 38. Nf3 {[%emt 0:00:30]} Qb1 {[%emt 0:00:30]} 39. Kh2 {[%emt 0:00:30]} 0-1